Cogmind - Beta 13 @@@ ROGUE MODE // 2024.04.18 @ 17:39:46 Player: Person Guy Result: Destroyed by G-67 Veteran with Field Laser Performance ------------- Evolutions (6) 3000 Regions Visited (16) 3200 Robots Destroyed (134) 670 Value Destroyed (4827) 4827 Prototype IDs (22) 440 Alien Tech Used (0) 0 Bonus (1757) 1757 TOTAL SCORE: 13894 Bonus ------- High Alert Combat Kills 134 Follower Combat Kills 1551 Entered Garrisons 200 Met Data Miner 300 Friendly Fire -428 Cogmind --------- Core Integrity 0/1150 Matter 74/300 Energy 100/100 System Corruption 9% Temperature Cool (12) Movement Core (50) Location -4/Garrison Parts ------- > --- POWER (2) -------- (None) > --- PROPULSION (4) --- (None) > --- UTILITY (9) ------ Enhanced Optical Array Improved Target Analyzer Hacking Suite System Shield > --- WEAPON (4) ------- (None) > --- INVENTORY (5) ---- Improved Heat Sink Heavy Rocket Launcher Peak State ------------ > --- POWER ------------ (None) > --- PROPULSION ------- Heavy Siege Treads > --- UTILITY ---------- Advanced Power Amplifier Improved Heat Sink Enhanced Optical Array Improved Target Analyzer Hacking Suite Hacking Suite Improved Hacking Suite Advanced Hacking Suite System Shield > --- WEAPON ----------- Tesla Rifle Wave Gun Advanced Assault Cannon Gauss Cannon > --- INVENTORY -------- Heavy Rocket Launcher [Rating: 74] Favorites ----------- Power Ion Engine Engine Ion Engine Reactor Light Antimatter Reactor Propulsion Aluminum Leg Treads Heavy Treads Leg Aluminum Leg Hover Unit Backup Propulsion III Utility Hacking Suite Device Improved Cooling System Storage Large Storage Unit Processor Advanced Targeting Computer Hackware Hacking Suite Protection Improved Medium Armor Plating Weapon Light Assault Rifle Energy Gun Cooled Pulse Rifle Energy Cannon Heavy Ion Cannon Ballistic Gun Light Assault Rifle Ballistic Cannon Light Cannon Launcher Proton Missile Launcher Build | -11 -10 -10 -10 -9 -8 -7 -7 -7 -6 -6 -6 -6 -5 -5 -4 -4 ------- Run | Yrd Mat Min Exi Min Mat Fac Was Fac Fac Low Low Dat Pro Fac Fac Gar Slots Evolved 12 | . . . . . 4 2 . . 2 . . . . 2 2 . Power 1 | . . . . . . . . . . . . . . 1 . . Propulsion 2 | . . . . . 1 . . . . . . . . 1 . . Utility 7 | . . . . . 2 2 . . 2 . . . . . 1 . Weapon 2 | . . . . . 1 . . . . . . . . . 1 . Parts Attached 115 | . 8 4 . . 33 18 3 4 4 2 1 . 17 11 10 . Power 12 | . 1 . . . 4 2 1 . . 1 . . 2 1 . . Engine 10 | . 1 . . . 4 2 . . . . . . 2 1 . . Core . | . . . . . . . . . . . . . . . . . Reactor 2 | . . . . . . . 1 . . 1 . . . . . . Propulsion 28 | . 2 3 . . 13 2 2 1 . . . . 4 . 1 . Treads 13 | . 2 1 . . 4 . 2 1 . . . . 2 . 1 . Leg 15 | . . 2 . . 9 2 . . . . . . 2 . . . Wheel . | . . . . . . . . . . . . . . . . . Hover . | . . . . . . . . . . . . . . . . . Flight . | . . . . . . . . . . . . . . . . . Utility 32 | . 2 . . . 7 4 . 1 2 1 1 . 1 8 5 . Device 10 | . . . . . 2 . . 1 . 1 . . 1 4 1 . Storage 2 | . 1 . . . 1 . . . . . . . . . . . Processor 4 | . . . . . 2 . . . . . . . . 1 1 . Hackware 8 | . . . . . . 2 . . 2 . . . . 1 3 . Protection 8 | . 1 . . . 2 2 . . . . 1 . . 2 . . Artifact . | . . . . . . . . . . . . . . . . . Weapon 43 | . 3 1 . . 9 10 . 2 2 . . . 10 2 4 . Energy Gun 7 | . . . . . 4 1 . . . . . . . . 2 . Energy Cannon 6 | . . . . . . 3 . . 1 . . . 2 . . . Ballistic Gun 16 | . 3 . . . 4 3 . 2 1 . . . 3 . . . Ballistic Cannon 11 | . . 1 . . 1 3 . . . . . . 2 2 2 . Launcher 3 | . . . . . . . . . . . . . 3 . . . Special Weapon . | . . . . . . . . . . . . . . . . . Impact Weapon . | . . . . . . . . . . . . . . . . . Slashing Weapon . | . . . . . . . . . . . . . . . . . Piercing Weapon . | . . . . . . . . . . . . . . . . . Special Melee Weapon . | . . . . . . . . . . . . . . . . . Unidentified Prototypes 5 | . . . . . 2 2 . 1 . . . . . . . . Parts Lost 38 | . 3 1 . . 5 1 . . . 2 . . 8 11 6 1 Power 5 | . . . . . 1 1 . . . . . . 1 2 . . Propulsion 6 | . 1 . . . 1 . . . . . . . 2 2 . . Utility 15 | . 1 . . . 1 . . . . 2 . . 2 5 3 1 Weapon 12 | . 1 1 . . 2 . . . . . . . 3 2 3 . Highest Loss Streak 8 | . 3 1 . . 1 1 . . . 1 . . 8 7 6 1 To Critical Strikes . | . . . . . . . . . . . . . . . . . Average Slot Usage (%) 86 | . 87 85 85 85 89 98 92 92 92 85 93 93 84 70 44 24 Engine 6 | . 14 14 14 14 9 6 4 . . . . . 4 5 . . Reactor 1 | . . . . . . . 2 7 6 6 6 6 1 . . . Treads 9 | . 18 1 . . 16 . 13 15 13 13 13 13 8 10 3 . Leg 10 | . 8 26 28 28 9 23 1 . . . . . 5 . . . Device 6 | . . . . . 7 7 7 7 6 11 13 13 12 9 7 . Storage 8 | . 14 14 14 14 9 7 7 7 6 6 6 6 6 4 . . Processor 4 | . . . . . 7 7 7 7 6 6 6 6 1 2 8 10 Hackware 10 | . . . . . . 13 15 15 26 20 20 20 20 15 20 13 Protection 3 | . 2 . . . 3 7 7 7 6 1 6 6 1 1 . . Energy Gun 3 | . . . . . 10 1 7 7 6 6 6 6 . . 1 . Energy Cannon 3 | . . . . . . 5 7 7 6 6 6 6 5 4 . . Ballistic Gun 11 | . 27 16 14 14 10 11 7 7 5 6 6 6 5 4 . . Ballistic Cannon 3 | . . 11 14 14 5 2 . . . . . . 5 4 1 . Naked Turns . | . . . . . . . . . . . . . . . . . Heaviest Build 64 | 13 27 29 29 29 45 55 60 61 63 63 60 60 64 57 26 . Greatest Support 98 | 20 40 40 20 20 63 54 90 98 98 98 98 98 98 90 70 3 Greatest Overweight (x) 2 | . . 1 1 1 1 1 . . . . . . 2 . 1 . Average Overweight (x) . | . . . 1 1 . . . . . . . . . . . . Largest Inventory Capacity 15 | 8 15 15 15 15 15 15 15 15 15 15 15 15 15 15 5 5 Average Capacity 14 | 8 10 15 15 15 15 15 15 15 15 15 15 15 15 14 5 5 Most Carried 15 | 5 8 7 6 7 15 15 15 15 14 15 14 14 15 9 5 2 Average Carried 9 | 5 5 4 6 6 8 13 13 14 12 13 13 14 7 5 4 2 Final Capacity 15 | 8 15 15 15 15 15 15 15 15 15 15 15 15 15 5 5 5 Final Carried 15 | 4 7 6 6 7 12 14 14 15 12 14 14 14 5 5 2 2 Class Distribution -------------------- 53% | Hacker-Gunner 27% | Mutant 9% | Gunner 5% | Scavenger-Gunner 3% | Hacker-Mutant Dominant Class ---------------- Mutant | -10/Materials Mutant | -10/Mines Mutant | -10/Exiles Mutant | -9/Mines Gunner | -8/Materials Hacker-Gunner | -7/Factory Hacker-Gunner | -7/Waste Hacker-Gunner | -7/Factory Hacker-Gunner | -6/Factory Hacker-Gunner | -6/Lower Caves Hacker-Gunner | -6/Lower Caves Hacker-Gunner | -6/Data Miner Hacker-Gunner | -5/Proximity Caves Hacker-Gunner | -5/Factory Hacker-Mutant | -4/Factory Hacker-Mutant | -4/Garrison Resources | -11 -10 -10 -10 -9 -8 -7 -7 -7 -6 -6 -6 -6 -5 -5 -4 -4 ----------- Run | Yrd Mat Min Exi Min Mat Fac Was Fac Fac Low Low Dat Pro Fac Fac Gar Matter Collected 2870 | 200 275 113 . 25 683 551 48 101 60 57 16 . 343 364 34 . Remotely . | . . . . . . . . . . . . . . . . . Salvage Created 5648 | . 597 195 . 94 1453 863 . 197 189 445 102 . 844 631 38 . Parts 234 | . 43 7 . 4 62 43 . 5 6 15 5 . 18 26 . . Haulers Intercepted 5 | . 1 . . . 2 1 . 1 . . . . . . . . Recyclers Shooed 4 | . 1 . . . . 2 . . . . . . . 1 . . Parts Field Recycled . | . . . . . . . . . . . . . . . . . Retrieved Matter . | . . . . . . . . . . . . . . . . . Parts Self-Destructed 53 | . . . . . . . . . . 14 . . 39 . . . Prevented 1 | . . . . . . . . . . . . . 1 . . . Kills | -11 -10 -10 -10 -9 -8 -7 -7 -7 -6 -6 -6 -6 -5 -5 -4 -4 ------- Run | Yrd Mat Min Exi Min Mat Fac Was Fac Fac Low Low Dat Pro Fac Fac Gar Combat Hostiles Destroyed 106 | . 17 5 . 3 29 15 . 2 3 7 . . 19 5 1 . Guns 58 | . 17 3 . 1 24 5 . 1 . 4 . . 1 1 1 . Cannons 33 | . . 2 . 2 5 9 . 1 1 1 . . 8 4 . . AOE 9 | . . . . . . . . . . . . . 9 . . . Classes Destroyed 16 | . 5 . . . 4 3 . 2 . . 1 . . 1 . . Worker 1 | . . . . . . . . . . . . . . 1 . . Builder 3 | . . . . . 1 . . . . . . . . 2 . . Tunneler 1 | . . . . . . 1 . . . . . . . . . . Hauler 5 | . 1 . . . 2 1 . 1 . . . . . . . . Recycler 7 | . 1 . . . 3 1 . 1 . . . . . 1 . . Operator 7 | . 2 . . . 2 2 . . . . . . . 1 . . Watcher 3 | . . . . . . . . 1 . . . . . 2 . . Swarmer 25 | . 8 . . 1 6 3 . . . . . . 7 . . . Grunt 60 | . 9 5 . 2 15 5 . 1 3 6 . . 12 2 . . Brawler 1 | . . . . . . . . 1 . . . . . . . . Duelist 1 | . . . . . . 1 . . . . . . . . . . Sentry 11 | . . . . . 5 3 . . . 1 . . . 2 . . Demolisher 1 | . . . . . 1 . . . . . . . . . . . Hunter 3 | . . . . . 2 . . . . . . . . 1 . . Programmer 5 | . . . . . . 3 . . . . . . . 1 1 . Samaritan 2 | . . . . . . . . . . . 2 . . . . . Best Kill Streak 11 | . 3 2 . 2 5 4 . 2 3 4 . . 11 2 1 . Combat Bots Only 11 | . 3 2 . 2 4 4 . 1 3 4 . . 11 1 1 . Max Kills in Single Turn 4 | . 1 1 . 1 2 1 . 1 1 1 1 . 4 1 1 . Gunslinging 1 | . . . . . 1 . . . . . . . . . . . Exploded 4 | . . . . . . . . . . . . . 4 . . . Melee . | . . . . . . . . . . . . . . . . . Uniques/NPCs Destroyed . | . . . . . . . . . . . . . . . . . Combat | -11 -10 -10 -10 -9 -8 -7 -7 -7 -6 -6 -6 -6 -5 -5 -4 -4 -------- Run | Yrd Mat Min Exi Min Mat Fac Was Fac Fac Low Low Dat Pro Fac Fac Gar Hostile Shots Fired 926 | . 110 40 . 2 129 127 . 22 8 55 . . 158 122 111 42 Missed 299 | . 31 6 . . 31 46 . 9 3 18 . . 61 47 36 11 Damage Taken 10194 | . 725 482 . 35 1495 1053 . 124 110 567 . . 1849 1711 1443 600 Core 2500 | . 105 55 . 7 174 152 . . . 63 . . 394 389 583 578 Absorbed by Shields . | . . . . . . . . . . . . . . . . . Reduced by Siege Mode 95 | . . . . . . . . . . . . . . . 95 . Regen/Repaired (Parts) 23 | . . . . . . . . 23 . . . . . . . . Core Remaining (%) 64 | 100 . . . 33 68 . . 78 . . . . 46 61 . . Volleys Fired 350 | . 73 27 . 5 79 44 . 7 5 15 2 . 35 42 16 . Largest 3 | . 2 2 . 2 3 3 . 3 3 3 3 . 3 3 2 . Hottest 176 | . 40 55 . 55 130 153 . 113 138 143 143 . 176 151 96 . Shots Fired 880 | . 146 54 . 10 229 134 . 21 14 45 6 . 83 118 20 . Gun 609 | . 146 47 . 5 193 79 . 14 9 30 4 . 31 39 12 . Cannon 260 | . . 7 . 5 36 55 . 7 5 15 2 . 41 79 8 . Launcher 11 | . . . . . . . . . . . . . 11 . . . Special . | . . . . . . . . . . . . . . . . . Kinetic 593 | . 146 54 . 10 133 90 . 8 5 15 2 . 38 84 8 . Thermal 276 | . . . . . 96 44 . 13 9 30 4 . 34 34 12 . Explosive 4 | . . . . . . . . . . . . . 4 . . . Electromagnetic 7 | . . . . . . . . . . . . . 7 . . . Robot Hit Streak 18 | . 18 14 . 5 15 10 . 6 8 18 7 . 13 12 10 . Robot Miss Streak 7 | . 7 4 . 2 3 2 . 2 2 2 1 . 5 5 1 . Penetration Max . | . . . . . . . . . . . . . . . . . Secondary Targets 4 | . 1 1 . . 2 . . . . . . . . . . . Max Gunslinging Chain 1 | . 1 1 . . 1 . . . . . . . . . . . Shots Hit Robots 544 | . 90 38 . 6 149 79 . 13 8 29 4 . 46 66 16 . Core Hits 268 | . 42 13 . 4 66 28 . 7 2 16 4 . 41 42 3 . Critical Kills 7 | . . . . . 2 1 . . 1 2 1 . . . . . Critical Parts Destroyed 3 | . . . . . 2 . . . . . . . . 1 . . Critical Strikes 28 | . . . . 1 12 2 . . 2 4 1 . . 2 4 . Burn 12 | . . . . . 7 . . . 1 2 . . . . 2 . Meltdown 4 | . . . . . . 1 . . 1 2 . . . . . . Destroy 6 | . . . . . 4 . . . . . 1 . . 1 . . Blast 6 | . . . . 1 1 1 . . . . . . . 1 2 . Melee Attacks . | . . . . . . . . . . . . . . . . . Impact . | . . . . . . . . . . . . . . . . . Slashing . | . . . . . . . . . . . . . . . . . Piercing . | . . . . . . . . . . . . . . . . . Sneak Attacks . | . . . . . . . . . . . . . . . . . Combat Hostiles . | . . . . . . . . . . . . . . . . . Follow-up Attacks . | . . . . . . . . . . . . . . . . . Damage Inflicted 12414 | . 789 345 . 61 2678 1974 . 278 201 688 98 . 2649 2116 537 . Guns 6161 | . 785 280 . 30 2094 981 . 170 103 366 66 . 426 536 324 . Cannons 4606 | . . 65 . 31 577 993 . 108 98 322 32 . 709 1466 205 . Explosions 1625 | . . . . . . . . . . . . . 1514 111 . . Melee . | . . . . . . . . . . . . . . . . . Ramming 22 | . 4 . . . 7 . . . . . . . . 3 8 . Kinetic 5966 | . 785 345 . 61 1305 1153 . 114 45 137 28 . 514 1274 205 . Thermal 4801 | . . . . . 1366 821 . 164 156 551 70 . 621 728 324 . Explosive 680 | . . . . . . . . . . . . . 680 . . . Electromagnetic 945 | . . . . . . . . . . . . . 834 111 . . Impact . | . . . . . . . . . . . . . . . . . Slashing . | . . . . . . . . . . . . . . . . . Piercing . | . . . . . . . . . . . . . . . . . Highest Corruption 9 | . . . . . . 1 1 1 . . . . . 6 9 9 Average Corruption 1 | . . . . . . 1 1 1 . . . . . 3 7 9 Corruption Purged . | . . . . . . . . . . . . . . . . . Corruption Blocked . | . . . . . . . . . . . . . . . . . Effects 52 | . . . . . . 14 5 7 . . . . . 18 6 2 Message Errors 9 | . . . . . . 2 . 2 . . . . . 3 1 1 Matter Fused 13 | . . . . . . 2 2 2 . . . . . 4 3 . Heat Flow Errors 4 | . . . . . . 2 . . . . . . . 2 . . Energy Discharges 12 | . . . . . . 3 3 . . . . . . 4 1 1 Parts Rejected 1 | . . . . . . . . . . . . . . . 1 . Data Loss (minor) 4 | . . . . . . 1 . 2 . . . . . 1 . . Data Loss (major) 3 | . . . . . . 2 . . . . . . . 1 . . Misfires 5 | . . . . . . 2 . 1 . . . . . 2 . . Weapon Failures 1 | . . . . . . . . . . . . . . 1 . . Overload Shots . | . . . . . . . . . . . . . . . . . Overflow Damage 98 | . . . . . 16 40 . . . . . . 5 37 . . Projectiles 93 | . . . . . 16 40 . . . . . . . 37 . . Explosions 5 | . . . . . . . . . . . . . 5 . . . Melee . | . . . . . . . . . . . . . . . . . Knockbacks 28 | . . 2 . . 12 . . . . . . . . 10 4 . Impact . | . . . . . . . . . . . . . . . . . Kinetic 25 | . . 2 . . 10 . . . . . . . . 9 4 . Secondary 3 | . . . . . 2 . . . . . . . . 1 . . Self-Inflicted Damage 72 | . . . . . . . . . . . . . 31 38 3 . Shots 6 | . . . . . . . . . . . . . 2 4 . . Rammed 8 | . 1 . . . 3 . . . . . . . . 1 3 . Targets Rammed 10 | . 2 . . . 3 1 . . . . . . . 1 3 . Kicked 1 | . . . . . . 1 . . . . . . . . . . Crushed 1 | . 1 . . . . . . . . . . . . . . . Highest Temperature 187 | . 25 94 . 35 150 187 . . 11 24 . . 87 94 76 12 Average Temperature 36 | . 7 31 . 15 36 58 . . 5 11 . . 31 29 39 12 Received Heat Transfer 3123 | . 174 297 . 27 675 435 . 45 54 291 . . 575 312 111 127 Siege Activations 1 | . . . . . . . . . . . . . . . 1 . Total Turns 17 | . . . . . . . . . . . . . . . 17 . Longest Duration 17 | . . . . . . . . . . . . . . . 17 . Robots Corrupted . | . . . . . . . . . . . . . . . . . Combat Hostiles . | . . . . . . . . . . . . . . . . . Parts Fried 3 | . . . . . . . . . . . . . 3 . . . Impact Corruptions . | . . . . . . . . . . . . . . . . . Robots Melted 6 | . . . . . . 1 . . 2 2 . . 1 . . . Combat Hostiles 6 | . . . . . . 1 . . 2 2 . . 1 . . . Parts Melted 19 | . . . . . 8 4 . . 3 4 . . . . . . Heat Transferred 8680 | . . . . . 3145 1214 . 259 335 1092 124 . 994 962 555 . Parts Sabotaged . | . . . . . . . . . . . . . . . . . Parts Stolen . | . . . . . . . . . . . . . . . . . Parts Stripped . | . . . . . . . . . . . . . . . . . Power Chain Reactions . | . . . . . . . . . . . . . . . . . Alert | -11 -10 -10 -10 -9 -8 -7 -7 -7 -6 -6 -6 -6 -5 -5 -4 -4 ------- Run | Yrd Mat Min Exi Min Mat Fac Was Fac Fac Low Low Dat Pro Fac Fac Gar Peak Influence 1217 | . 246 159 . 139 420 248 64 1217 851 . . . . 416 126 106 Initial 595 | . . 19 . . . 191 64 . 595 . . . . 173 41 101 Average 187 | . 107 63 . 114 185 133 52 446 652 . . . . 270 83 99 Maximum Alert Level 4 | . 1 . . . 2 1 . 4 3 . . . . 2 . . Low Security (%) 68 | 100 86 100 . 100 46 93 100 27 . . . . . 20 100 100 Level 1 22 | . 13 . . . 52 6 . 21 . . . . . 79 . . Level 2 6 | . . . . . . . . 32 75 . . . . . . . Level 3 1 | . . . . . . . . 10 24 . . . . . . . Level 4 . | . . . . . . . . 7 . . . . . . . . Level 5 . | . . . . . . . . . . . . . . . . . High Security . | . . . . . . . . . . . . . . . . . Max Security . | . . . . . . . . . . . . . . . . . Squads Dispatched 35 | . 3 . . . 8 3 . 10 2 . . . 1 3 5 . Investigation 9 | . 1 . . . 2 . . 2 1 . . . 1 . 2 . Extermination 9 | . . . . . . 3 . 2 1 . . . . 2 1 . Reinforcement 8 | . 2 . . . 3 . . 3 . . . . . . . . Assault . | . . . . . . . . . . . . . . . . . Garrison 9 | . . . . . 3 . . 3 . . . . . 1 2 . Intercept . | . . . . . . . . . . . . . . . . . Searches Triggered . | . . . . . . . . . . . . . . . . . Construction Impeded 1 | . . . . . . . . 1 . . . . . . . . Haulers Reinforced 1 | . . . . . . . . 1 . . . . . . . . Active Scanning Responses . | . . . . . . . . . . . . . . . . . Cargo Convoy Interrupts . | . . . . . . . . . . . . . . . . . Stealth | -11 -10 -10 -10 -9 -8 -7 -7 -7 -6 -6 -6 -6 -5 -5 -4 -4 --------- Run | Yrd Mat Min Exi Min Mat Fac Was Fac Fac Low Low Dat Pro Fac Fac Gar Distress Signals 7 | . 1 . . . 3 1 . . 1 . . . . . 1 . Communications Jammed . | . . . . . . . . . . . . . . . . . Distress Signals . | . . . . . . . . . . . . . . . . . Times Spotted 235 | . 34 10 . 5 56 25 . 22 6 7 . . 29 19 19 3 Peak Tracking Total 13 | . 5 3 . 3 7 7 . 4 6 3 . . 13 7 11 3 Tactical Retreats 11 | . . 1 . . . 2 . . . . . . 2 3 3 . Traps | -11 -10 -10 -10 -9 -8 -7 -7 -7 -6 -6 -6 -6 -5 -5 -4 -4 ------- Run | Yrd Mat Min Exi Min Mat Fac Was Fac Fac Low Low Dat Pro Fac Fac Gar Traps Triggered 7 | . 2 . . . . 2 . 1 . . . . . . 1 1 Indirectly . | . . . . . . . . . . . . . . . . . Trap Hack Attempts . | . . . . . . . . . . . . . . . . . Triggered . | . . . . . . . . . . . . . . . . . Disarmed . | . . . . . . . . . . . . . . . . . Reprogrammed . | . . . . . . . . . . . . . . . . . Reused . | . . . . . . . . . . . . . . . . . Traps Extracted . | . . . . . . . . . . . . . . . . . Installed . | . . . . . . . . . . . . . . . . . Triggered . | . . . . . . . . . . . . . . . . . Machines | -11 -10 -10 -10 -9 -8 -7 -7 -7 -6 -6 -6 -6 -5 -5 -4 -4 ---------- Run | Yrd Mat Min Exi Min Mat Fac Was Fac Fac Low Low Dat Pro Fac Fac Gar Machines Disabled 23 | . . 1 . . 1 . . 5 6 . . . 1 9 . . Max in Single Turn 3 | . . . . . 1 . . . . . . . 1 3 . . Garrison Access 3 | . . . . . 1 . . . . . . . . 2 . . Machines Repaired . | . . . . . . . . . . . . . . . . . Machines Dismantled . | . . . . . . . . . . . . . . . . . Machines Sabotaged . | . . . . . . . . . . . . . . . . . Overloaded Fab Kills . | . . . . . . . . . . . . . . . . . Hacking | -11 -10 -10 -10 -9 -8 -7 -7 -7 -6 -6 -6 -6 -5 -5 -4 -4 --------- Run | Yrd Mat Min Exi Min Mat Fac Was Fac Fac Low Low Dat Pro Fac Fac Gar Machines Accessed 33 | . 6 . . . 7 6 . 2 . . . 4 1 3 4 . Terminals 21 | . 6 . . . 5 5 . 2 . . . . 1 1 1 . Fabricators 2 | . . . . . . 1 . . . . . . . . 1 . Repair Stations . | . . . . . . . . . . . . . . . . . Recycling Units . | . . . . . . . . . . . . . . . . . Scanalyzers 1 | . . . . . 1 . . . . . . . . . . . Garrison Access 5 | . . . . . 1 . . . . . . . . 2 2 . Total Hacks 97 | . 15 . . . 15 10 . 6 . . . 30 3 9 9 . Successful 63 | . 8 . . . 11 2 . . . . . 30 3 5 4 . Failed 33 | . 6 . . . 4 8 . 6 . . . . . 4 5 . Catastrophic 9 | . 1 . . . 1 4 . 3 . . . . . . . . Database Lockouts 1 | . 1 . . . . . . . . . . . . . . . Manual 10 | . 7 . . . 2 1 . . . . . . . . . . Terminals 50 | . 15 . . . 11 8 . 6 . . . . 3 4 3 . Fabricators 5 | . . . . . . 2 . . . . . . . . 3 . Repair Stations . | . . . . . . . . . . . . . . . . . Recycling Units . | . . . . . . . . . . . . . . . . . Scanalyzers 3 | . . . . . 3 . . . . . . . . . . . Garrison Access 9 | . . . . . 1 . . . . . . . . 5 3 . Terminal Hacks 52 | . 7 . . . 7 1 . . . . . 30 3 3 1 . Record 14 | . . . . . . . . . . . . 11 3 . . . Part Schematic 11 | . . . . . . . . . . . . 11 . . . . Robot Schematic 5 | . . . . . . . . . . . . 5 . . . . Prototype ID Bank 8 | . 3 . . . 2 . . . . . . 3 . . . . Branch Access Points 2 | . . . . . 1 . . . . . . . . 1 . . Emergency Access Points 1 | . . . . . . . . . . . . . . 1 . . Alert Level 5 | . 3 . . . 1 1 . . . . . . . . . . Unreport Threat 1 | . . . . . 1 . . . . . . . . . . . Locate Traps 3 | . . . . . 2 . . . . . . . . 1 . . Registered Components 1 | . 1 . . . . . . . . . . . . . . . Registered Prototypes 1 | . . . . . . . . . . . . . . . 1 . Fabricator Hacks 3 | . . . . . . 1 . . . . . . . . 2 . Load Schematic 1 | . . . . . . . . . . . . . . . 1 . Build 2 | . . . . . . 1 . . . . . . . . 1 . Repair Station Hacks . | . . . . . . . . . . . . . . . . . Recycling Unit Hacks . | . . . . . . . . . . . . . . . . . Scanalyzer 3 | . . . . . 3 . . . . . . . . . . . Insert Component 2 | . . . . . 2 . . . . . . . . . . . Analyze 1 | . . . . . 1 . . . . . . . . . . . Garrison Access Hacks 4 | . . . . . 1 . . . . . . . . 2 1 . Unlock Access 1 | . . . . . . . . . . . . . . . 1 . Seal Access 3 | . . . . . 1 . . . . . . . . 2 . . Unauthorized Hacks 1 | . 1 . . . . . . . . . . . . . . . Terminals 1 | . 1 . . . . . . . . . . . . . . . Operators 1 | . 1 . . . . . . . . . . . . . . . Fabricators . | . . . . . . . . . . . . . . . . . Repair Stations . | . . . . . . . . . . . . . . . . . Recycling Units . | . . . . . . . . . . . . . . . . . Scanalyzers . | . . . . . . . . . . . . . . . . . Garrison Access . | . . . . . . . . . . . . . . . . . Data Cores Recovered 2 | . . . . . . 1 . . . . . . . 1 . . Used . | . . . . . . . . . . . . . . . . . Hacking Detections 23 | . 4 . . . 5 6 . 2 . . . . 1 2 3 . Full Trace Events 4 | . . . . . 1 . . 1 . . . . 1 . 1 . Feedback Events . | . . . . . . . . . . . . . . . . . Feedback Blocked . | . . . . . . . . . . . . . . . . . Robot Schematics Acquired 5 | . . . . . . . . . . . . 5 . . . . Robots Built . | . . . . . . . . . . . . . . . . . Authchips . | . . . . . . . . . . . . . . . . . Time 187 | . . . . . . . . . . . . . . . 187 . Total Robot Build Rating . | . . . . . . . . . . . . . . . . . Part Schematics Acquired 12 | . . . . . 1 . . . . . . 11 . . . . Parts Built 2 | . . . . . . 2 . . . . . . . . . . Authchips . | . . . . . . . . . . . . . . . . . Time 31 | . . . . . . 31 . . . . . . . . . . Total Part Build Rating 10 | . . . . . . 10 . . . . . . . . . . Parts Repaired . | . . . . . . . . . . . . . . . . . Time . | . . . . . . . . . . . . . . . . . Parts Recycled . | . . . . . . . . . . . . . . . . . Recycled Matter . | . . . . . . . . . . . . . . . . . Retrieved Matter . | . . . . . . . . . . . . . . . . . Retrieved Components . | . . . . . . . . . . . . . . . . . Parts Scanalyzed 1 | . . . . . 1 . . . . . . . . . . . Part Schematics Acquired 1 | . . . . . 1 . . . . . . . . . . . Parts Damaged . | . . . . . . . . . . . . . . . . . Bothacking | -11 -10 -10 -10 -9 -8 -7 -7 -7 -6 -6 -6 -6 -5 -5 -4 -4 ------------ Run | Yrd Mat Min Exi Min Mat Fac Was Fac Fac Low Low Dat Pro Fac Fac Gar Used RIF Installer . | . . . . . . . . . . . . . . . . . Robots Hacked . | . . . . . . . . . . . . . . . . . Non-combat . | . . . . . . . . . . . . . . . . . Combat . | . . . . . . . . . . . . . . . . . Robot Hacks Applied . | . . . . . . . . . . . . . . . . . Relay Couplers Released . | . . . . . . . . . . . . . . . . . Fabnet Peak Effective % . | . . . . . . . . . . . . . . . . . Robots Rewired 3 | . . . . . . . . . . . . . . 2 . 1 Allies Hacked 1 | . . . . . . . . . . . . . . 1 . . Hacks Repelled . | . . . . . . . . . . . . . . . . . Allies | -11 -10 -10 -10 -9 -8 -7 -7 -7 -6 -6 -6 -6 -5 -5 -4 -4 -------- Run | Yrd Mat Min Exi Min Mat Fac Was Fac Fac Low Low Dat Pro Fac Fac Gar Total Allies 30 | . . 6 . . . . 20 . . . . . 1 2 . 1 Largest Group 20 | . . 6 6 3 2 . 20 20 13 . . . 1 2 . 1 Highest-Rated Group 567 | . . 124 124 40 24 . 567 567 403 . . . 96 96 . 46 Highest-Rated Ally 96 | . . 31 31 16 16 . 35 35 35 . . . 96 96 . 46 Total Orders 2 | . . . . . . . . . . . . . . 2 . . EXPLORE 2 | . . . . . . . . . . . . . . 2 . . Ally Attacks 296 | . . 5 . 11 32 . . 171 28 . . . 29 18 . 2 Total Damage 7459 | . . 50 . 84 324 . . 3564 2010 . . . 844 520 . 63 Kills 68 | . . 3 . 3 7 . . 35 9 . . . 8 3 . . Allies Corrupted 2 | . . . . . . . . . 1 . . . . . . 1 Allies Melted . | . . . . . . . . . . . . . . . . . Intel | -11 -10 -10 -10 -9 -8 -7 -7 -7 -6 -6 -6 -6 -5 -5 -4 -4 ------- Run | Yrd Mat Min Exi Min Mat Fac Was Fac Fac Low Low Dat Pro Fac Fac Gar Robot Analysis Total . | . . . . . . . . . . . . . . . . . Derelict Logs Recovered 5 | . . 2 . 1 . . . . . . 1 . 1 . . . Drone Launches 22 | . . . . . . . . . . . . . . 22 . . Drone Recoveries 7 | . . . . . . . . . . . . . . 7 . . Exploration | -11 -10 -10 -10 -9 -8 -7 -7 -7 -6 -6 -6 -6 -5 -5 -4 -4 ------------- Run | Yrd Mat Min Exi Min Mat Fac Was Fac Fac Low Low Dat Pro Fac Fac Gar Turns Passed 12886 | 1 1395 1145 403 448 1966 1735 490 1060 313 905 641 132 816 949 421 66 Spaces Moved 7222 | 1 776 524 212 225 947 1196 288 586 170 524 394 83 347 464 428 57 Core 566 | . . . . . . . . . . . . . . 82 427 57 Treads 3616 | . 499 3 . . 583 . 256 586 170 524 394 83 135 382 1 . Legs 3040 | 1 277 521 212 225 364 1196 32 . . . . . 212 . . . Wheels . | . . . . . . . . . . . . . . . . . Hover . | . . . . . . . . . . . . . . . . . Flight . | . . . . . . . . . . . . . . . . . Fastest Speed 50 | 120 120 160 190 190 120 120 120 160 160 160 160 160 160 50 50 50 Average Speed 151 | 120 145 189 190 190 158 124 160 160 160 160 160 160 195 144 75 50 Slowest Speed 260 | 120 160 190 190 190 190 190 165 165 160 160 160 160 260 165 180 50 Overloaded Moves . | . . . . . . . . . . . . . . . . . Propulsion Burnouts . | . . . . . . . . . . . . . . . . . Robots Hopped . | . . . . . . . . . . . . . . . . . Cave-ins Triggered . | . . . . . . . . . . . . . . . . . Exploration Rate (%) 49 | 2 98 96 61 52 81 40 90 23 5 61 63 69 51 17 11 13 Regions Visited 16 Branch Regions 7 Pre-discovered Areas 3 | . . 1 . . . . . . . . . 1 1 . . . Known Exits Taken 3 | . . . . . 1 . . . . . . . 1 . 1 . Unknown Exits Taken 11 | 1 1 1 1 1 . . . 1 1 1 1 1 . 1 . . Scrap Searched 7 | . . 1 . 1 . . . . . . 1 . 4 . . . Spaces Dug . | . . . . . . . . . . . . . . . . . Terrain Destroyed 54 | . . . . . 6 5 . . 1 3 1 . 26 9 3 . Melee . | . . . . . . . . . . . . . . . . . Projectile 40 | . . . . . 6 5 . . 1 3 1 . 12 9 3 . AOE 14 | . . . . . . . . . . . . . 14 . . . Terrain Rammed . | . . . . . . . . . . . . . . . . . Walls Destroyed . | . . . . . . . . . . . . . . . . . Machines Disabled . | . . . . . . . . . . . . . . . . . Actions | -11 -10 -10 -10 -9 -8 -7 -7 -7 -6 -6 -6 -6 -5 -5 -4 -4 --------- Run | Yrd Mat Min Exi Min Mat Fac Was Fac Fac Low Low Dat Pro Fac Fac Gar Total 8563 | 2 918 632 213 237 1270 1357 321 693 201 557 401 82 419 653 513 94 Wait 560 | . 43 70 2 7 140 45 4 83 20 12 . . 10 106 18 . Move 7208 | . 775 523 211 224 946 1196 287 585 169 523 393 82 346 463 428 57 Hop . | . . . . . . . . . . . . . . . . . Pick Up 137 | . 12 4 . 1 42 29 6 7 1 4 3 . 4 10 14 . Fast Attach . | . . . . . . . . . . . . . . . . . Attach 102 | . 8 4 . . 32 14 2 1 4 2 1 . 13 11 10 . Detach 3 | . . . . . . . . . . . . . . 3 . . Swap 13 | . . . . . 1 4 1 3 . . . . 4 . . . Drop 105 | 2 5 4 . . 27 24 9 6 2 1 2 . 7 7 9 . Fire 350 | . 73 27 . 5 79 44 . 7 5 15 2 . 35 42 16 . Melee . | . . . . . . . . . . . . . . . . . Ram 4 | . . . . . . . . . . . . . . 1 3 . Kick 1 | . . . . . . 1 . . . . . . . . . . Crush 5 | . 2 . . . 3 . . . . . . . . . . . Escape Stasis 15 | . . . . . . . . . . . . . . . . 15 Rewire 55 | . . . . . . . 12 1 . . . . . 5 15 22 Trap . | . . . . . . . . . . . . . . . . . Miscellaneous 5 | . . . . . . . . . . . . . . 5 . . Route ------- -11/Scrapyard -10/Materials (discovered 5 exits: [*Mat x3] / [*Min x2]) -10/Mines (discovered 3 exits: [*Mat x2] / [*Exi]) -10/Exiles (discovered 2 exits: [*Min x2]) -9/Mines -8/Materials (discovered 2 exits: *Fac x2) -7/Factory -7/Waste -7/Factory -6/Factory -6/Lower Caves -6/Lower Caves -6/Data Miner -5/Proximity Caves -5/Factory (discovered 5 exits: *Fac / Upp x2 / Ext x2) -4/Factory -4/Garrison History --------- Turn | Location | Event 2 | -11/Scrapyard | Discovered new exit (range 0) 2 | -11/Scrapyard | Entered Materials 196 | -10/Materials | Discovered new exit (range 3) 311 | -10/Materials | Build established: Mutant 329 | -10/Materials | Discovered new exit (range 10) 479 | -10/Materials | Lost 3 parts (1n1u1w) 487 | -10/Materials | Discovered new exit (range 9) 610 | -10/Materials | Discovered new exit (range 13) 1172 | -10/Materials | Discovered new exit (range 6) 1204 | -10/Materials | Central database locked down 1397 | -10/Materials | Entered Mines 1432 | -10/Mines | Core integrity fell below 50% 1515 | -10/Mines | Learned location of Zion (-7) 1726 | -10/Mines | Discovered new exit (range 3) 1739 | -10/Mines | Assisted by bots powering up and referring to "LRC-V3" 2091 | -10/Mines | Escorted by a lone wolf Derelict 2257 | -10/Mines | Learned Materials stockpile data 2440 | -10/Mines | Found a hidden stash of uninstalled traps 2512 | -10/Mines | Discovered new exit (range 5) 2529 | -10/Mines | Deemed a non-threat by the Exiles lab entrance 2529 | -10/Mines | Discovered new exit (range 5) 2542 | -10/Mines | Entered Exiles 2542 | -10/Exiles | Found Exiles lab abandoned 2542 | -10/Exiles | Accompanied by 6 allies 2567 | -10/Exiles | Discovered new exit (range 15) 2572 | -10/Exiles | Led the pair of lost Derelicts to a safe place 2922 | -10/Exiles | Discovered new exit (range 14) 2945 | -10/Exiles | Entered Mines 2945 | -9/Mines | Accompanied by 3 allies 3047 | -9/Mines | Received a Rocket Launcher from a helpful Derelict 3363 | -9/Mines | Discovered new exit (range 16) 3372 | -9/Mines | Learned 2 Materials zone layouts 3393 | -9/Mines | Entered Materials 3393 | -8/Materials | Accompanied by 2 allies 3393 | -8/Materials | Evolved 4 slots: Propulsion x1, Utility x2, Weapon x1 3394 | -8/Materials | Identified exit to Factory 3719 | -8/Materials | Garrison activated, responded to threat 4629 | -8/Materials | Build established: Gunner 5122 | -8/Materials | Discovered exit to Factory (range 7) 5359 | -8/Materials | Entered Factory 5359 | -7/Factory | Evolved 2 slots: Utility x2 5539 | -7/Factory | Fabricated Lgt. Angular Momentum Engine (x2) 5778 | -7/Factory | Discovered new exit (range 12) 5809 | -7/Factory | Build established: Hacker-Gunner 7094 | -7/Factory | Sucked down chute 7094 | -7/Factory | Entered Waste 7095 | -7/Waste | Joined by Warlord forces that had cleared the area 7354 | -7/Waste | Discovered new exit (range 16) 7584 | -7/Waste | Entered Factory 7584 | -7/Factory | Accompanied by 20 allies 7910 | -7/Factory | P-60 Hacker assimilated allied FC-ZIH(g) 8409 | -7/Factory | Garrison activated, responded to threat 8562 | -7/Factory | Discovered new exit (range 9) 8644 | -7/Factory | Entered another Factory area 8644 | -6/Factory | Accompanied by 13 allies 8644 | -6/Factory | Evolved 2 slots: Utility x2 8918 | -6/Factory | Lost 10 allies 8923 | -6/Factory | Discovered new exit (range 10) 8957 | -6/Factory | Entered Lower Caves 8982 | -6/Lower Caves | Lost 3 allies 9537 | -6/Lower Caves | Attracted the attention of an 0b10 checkpoint 9767 | -6/Lower Caves | Discovered new exit (range 13) 9862 | -6/Lower Caves | Entered another Lower Caves area 10106 | -6/Lower Caves | Learned Factory emergency access door positions 10487 | -6/Lower Caves | Discovered new exit (range 8) 10503 | -6/Lower Caves | Entered Data Miner 10503 | -6/Data Miner | Discovered new exit (range 6) 10534 | -6/Data Miner | Met Data Miner 10566 | -6/Data Miner | Learned location of Section 7 (-3) 10566 | -6/Data Miner | Acquired the access code to Warlord's prototype stash 10591 | -6/Data Miner | Received God Mode back door access code from Data Miner 10635 | -6/Data Miner | Entered Proximity Caves 10688 | -5/Proximity Caves | Identified exit to Factory 10840 | -5/Proximity Caves | Attracted the attention of an 0b10 base 10860 | -5/Proximity Caves | Escorted by Enhanced Grunt 10896 | -5/Proximity Caves | Destroyed 11 combat bots 10903 | -5/Proximity Caves | Lost 8 parts (1p2n2u3w) 10949 | -5/Proximity Caves | Learned Factory trap positions 11332 | -5/Proximity Caves | Core integrity fell below 50% 11451 | -5/Proximity Caves | Entered Factory 11451 | -5/Factory | Accompanied by 1 ally 11451 | -5/Factory | Evolved 2 slots: Power x1, Propulsion x1 11452 | -5/Factory | Loaded intel: 102 trap records 11476 | -5/Factory | Spotted B-75 Beast 11495 | -5/Factory | Allies destroyed B-75 Beast 11497 | -5/Factory | Identified exit to Upper Caves 11497 | -5/Factory | Identified exit to Extension 11501 | -5/Factory | Garrison activated, responded to threat 12251 | -5/Factory | Lost 3 allies 12353 | -5/Factory | Lost 7 allies 12381 | -5/Factory | Lost 7 parts (1p2n3u1w) 12395 | -5/Factory | Discovered new exit (range 4) 12400 | -5/Factory | Entered another Factory area 12400 | -4/Factory | Evolved 2 slots: Utility x1, Weapon x1 12666 | -4/Factory | Build established: Hacker-Mutant 12706 | -4/Factory | Garrison activated, responded to threat 12808 | -4/Factory | Lost 6 parts (3u3w) 12821 | -4/Factory | Identified exit to Garrison 12821 | -4/Factory | Entered Garrison 12822 | -4/Garrison | Core integrity fell below 50% 12859 | -4/Garrison | Triggered checkpoint 12881 | -4/Garrison | Core integrity fell below 20% 12887 | -4/Garrison | Destroyed by G-67 Veteran with Field Laser Last Messages --------------- 12853_ Field strength at 4. 12854_ Stasis field depleted. 12859_ Beams of light sweep through the air. An alarm sounds. 12859_ C-30 ARC bursts open, deploying its payload. 12859_ P-70 Sage unfolds itself. Door Terminal flashes as you approach. 12863_ Imp. Hacking Suite destroyed. 12863_ Critical hit (Burn: +37). 12865_ Attempting to rewire HF-X1K(g). 12866_ Attempting to rewire UB-FN7(g). 12869_ Critical hit (Burn: +50). 12870_ Attempting to rewire UB-FN7(g). 12872_ UB-FN7(g) rewired. 12873_ Attempting to rewire HF-X1K(g). 12877_ UB-FN7(g) system terminally corrupted. 12877_ Attempting to rewire HF-X1K(g). 12881_ P-70 Sage suffers critical hit (Burn). 12881_ Attempting to rewire HF-X1K(g). Map ----- +----------------------------------------------------+ | ????????????????????????????????# ????????????? | | ????????????????????????????????# #????????????? | | ????????????????????????????????# #????????????? | | ????????????????????????????????# #????????????? | | ????????????????????????????????# #????????????? | | ????????????????????????????????# #????????????? | | ????????????????????????????????# #????????????? | | ????????????????????????????????# #????????????? | | ????????????????????????????????# #????????????? | | ????????????????????????????????# ############## | | ????????????????????????????????# | | ????????????????????????????????# | | ????????????????????????????????# | | ???????????????????????????####?# ############### | | ???????????????????????????%" #?# #?????????????? | | ?????????????????????######" ### #?????????????? | | ?????????????????????# #?????????????? | | ?????????????????????# #?????????????? | | ?????????????????????# #### ######?????????????? | | ?????????????????????# #?#"""""#?????????????????? | | ?????????????????????# #?#######?????????????????? | | ?????????????????????# #?????????????????????????? | | ????????????????????## ##????????????????????????? | | ????????????????????#T #????????????????????????? | | ????????????????????## ###??????????????????????? | | ????????????????????# =p@#??????????????????????? | | ????????????????????# *g#??????????????????????? | | ????????????????????# gg l#??????????????????????? | | ????????????????????#######??????????????????????? | | ?????????????????????????????????????????????????? | | ?????????????????????????????????????????????????? | | ?????????????????????????????????????????????????? | | ?????????????????????????????????????????????????? | | ?????????????????????????????????????????????????? | | ?????????????????????????????????????????????????? | | | | | | | | | | | | | | | | | | | | | | | | | | | | | | | +----------------------------------------------------+ Best States ------------- Heat Dissipation 94 Energy Generation 24 Energy Capacity 325 Matter Stores 300 Matter Capacity 300 Sight Range 22 Terrain Scan Density 10 Power Amplification 30 Armor Coverage 225 Evasion (%) 55 Targeting Accuracy 8 Target Analysis 6 Recoil Reduction 3 Offensive Hacking 46 Defensive Hacking 10 Item Schematics ----------------- Hacking Suite | -8/Materials | Scanalyzed Combat Drone Bay | -6/Data Miner | Free Lgt. Regenerative Plating | -6/Data Miner | Free Cld. Nuclear Pulse Thruster | -6/Data Miner | Free Imp. Thermal Defense Suite | -6/Data Miner | Free Neutron Cannon | -6/Data Miner | Free Impulse Thruster | -6/Data Miner | Free Adv. Cryofiber Web | -6/Data Miner | Free Adv. Datajack | -6/Data Miner | Free Tesla Rifle | -6/Data Miner | Free Adv. Power Amplifier | -6/Data Miner | Free Biometal Leg | -6/Data Miner | Free Robot Schematics ------------------ S-27 Virus | -6/Data Miner | Free B-48 Gladiator | -6/Data Miner | Free L-41 Fighter | -6/Data Miner | Free H-77 Assassin | -6/Data Miner | Free L-61 Swordsman | -6/Data Miner | Free Fabricated ------------ Lgt. Angular Momentum Engine | x2 | -7/Factory | Preloaded Alien Tech Used ----------------- None Achievements -------------- None Challenges ------------ None Game ------ Seed ParticleDroneBlaster Manual? 0 Play Time 01:23:58 Cumulative 88.0 hours Start 2024.04.18 @ 16:10:04 End 2024.04.18 @ 17:39:46 Sessions 1 Manual Loads 0 Difficulty Rogue Special Mode None Game No. 78 Rogue 78 Adventurer 0 Explorer 0 Win Type - Total 0 Types 0/0/0/0/0/0/0/0/0 Lore% 42 Gallery% 54 Achievement% 33 Wizard Run 0 Options --------- Layout 1 ASCII 0 Keyboard 0 Movement Numpad Keybinds 0 Fullscreen 1 Font 24/Smallcaps Map View 50x35 Zoom Use 1% Tactical HUD 1 Map Filters NONE Filters NONE Steam 1 RUN: 89fd2f0c-90b1-4d5c-950a-aa0143bc6cf4